[Event "*** Titled Tuesday Blitz"]
[Site "Chess.com"]
[Date "2021.03.09"]
[Round "3"]
[White "guillembaches"]
[Black "kamilianin235"]
[Result "1-0"]
[WhiteElo "2461"]
[BlackElo "2268"]
[TimeControl "180+1"]
[EndTime "10:29:15 PST"]
[Termination "guillembaches won by resignation"]

1. e4 {[%clk 0:02:56.1]} 1... c5 {[%clk 0:02:59.7]} 2. Nf3 {[%clk 0:02:56.2]}
2... d6 {[%clk 0:02:59.5]} 3. d4 {[%clk 0:02:55.6]} 3... cxd4 {[%clk 0:03:00.4]}
4. Nxd4 {[%clk 0:02:56.2]} 4... Nf6 {[%clk 0:02:56.3]} 5. Nc3 {[%clk 0:02:56.7]}
5... Nc6 {[%clk 0:02:55.1]} 6. Bg5 {[%clk 0:02:54.3]} 6... Qb6 {[%clk
0:02:53.9]} 7. Bxf6 {[%clk 0:02:47.8]} 7... gxf6 {[%clk 0:02:48]} 8. Nb3 {[%clk
0:02:46]} 8... e6 {[%clk 0:02:42.6]} 9. Qd2 {[%clk 0:02:44.8]} 9... a6 {[%clk
0:02:37.9]} 10. O-O-O {[%clk 0:02:44.5]} 10... Bd7 {[%clk 0:02:33.2]} 11. f4
{[%clk 0:02:44.5]} 11... O-O-O {[%clk 0:02:28.9]} 12. Be2 {[%clk 0:02:44.2]}
12... Be7 {[%clk 0:02:26.2]} 13. Bh5 {[%clk 0:02:42]} 13... Be8 {[%clk
0:02:21.1]} 14. Rhf1 {[%clk 0:02:35.8]} 14... Qc7 {[%clk 0:02:19.4]} 15. Kb1
{[%clk 0:02:34.7]} 15... Kb8 {[%clk 0:02:11]} 16. Rf3 {[%clk 0:02:29.9]} 16...
Na5 {[%clk 0:01:55.2]} 17. Nxa5 {[%clk 0:02:04.1]} 17... Qxa5 {[%clk 0:01:53.1]}
18. f5 {[%clk 0:01:57]} 18... Rc8 {[%clk 0:01:43]} 19. Rd3 {[%clk 0:01:47.8]}
19... Rg8 {[%clk 0:01:33.1]} 20. g4 {[%clk 0:01:47.4]} 20... b5 {[%clk
0:01:27.4]} 21. Ne2 {[%clk 0:01:40.6]} 21... Qb6 {[%clk 0:01:19.7]} 22. Nf4
{[%clk 0:01:35.9]} 22... e5 {[%clk 0:00:45.1]} 23. Nd5 {[%clk 0:01:32.5]} 23...
Qb7 {[%clk 0:00:44.6]} 24. Nxe7 {[%clk 0:01:22.4]} 24... Qxe7 {[%clk 0:00:45.5]}
25. Rxd6 {[%clk 0:01:22.3]} 25... Bc6 {[%clk 0:00:45.3]} 26. Qe3 {[%clk
0:01:14.9]} 26... Ka8 {[%clk 0:00:24.7]} 27. h3 {[%clk 0:01:04.5]} 27... Rgd8
{[%clk 0:00:21.4]} 28. Qc5 {[%clk 0:00:49.3]} 28... Bb7 {[%clk 0:00:17.1]} 29.
Qb6 {[%clk 0:00:39.3]} 29... Rxd6 {[%clk 0:00:12.1]} 30. Rxd6 {[%clk 0:00:37.3]}
30... Bxe4 {[%clk 0:00:10.2]} 31. Qxa6+ {[%clk 0:00:35.6]} 31... Kb8 {[%clk
0:00:10.3]} 32. Qxb5+ {[%clk 0:00:32.6]} 32... Bb7 {[%clk 0:00:10.6]} 33. Rd7
{[%clk 0:00:30]} 33... Rc7 {[%clk 0:00:01.6]} 34. Rxe7 {[%clk 0:00:26.6]} 34...
Rxe7 {[%clk 0:00:02.5]} 35. g5 {[%clk 0:00:24.4]} 35... Rc7 {[%clk 0:00:03.4]}
36. gxf6 {[%clk 0:00:20.7]} 36... e4 {[%clk 0:00:04.3]} 37. Be2 {[%clk
0:00:20.1]} 37... e3 {[%clk 0:00:04]} 38. Qe8+ {[%clk 0:00:20]} 38... Ka7 {[%clk
0:00:03.3]} 39. Qxe3+ {[%clk 0:00:20.4]} 39... Kb8 {[%clk 0:00:02.6]} 40. b3
{[%clk 0:00:20.9]} 1-0

[Event "*** Titled Tuesday Blitz"]
[Site "Chess.com"]
[Date "2021.03.09"]
[Round "3"]
[White "Omk124"]
[Black "Blitzstream"]
[Result "0-1"]
[WhiteElo "2451"]
[BlackElo "2746"]
[TimeControl "180+1"]
[EndTime "10:29:16 PST"]
[Termination "Blitzstream won by resignation"]

1. e4 {[%clk 0:03:00.9]} 1... d5 {[%clk 0:02:59.1]} 2. exd5 {[%clk 0:03:00.9]}
2... Qxd5 {[%clk 0:03:00]} 3. Nc3 {[%clk 0:03:01.3]} 3... Qa5 {[%clk 0:02:59.9]}
4. d4 {[%clk 0:02:59.9]} 4... Nf6 {[%clk 0:03:00.2]} 5. Nf3 {[%clk 0:03:00.2]}
5... Nc6 {[%clk 0:02:58.8]} 6. Bc4 {[%clk 0:02:58.8]} 6... Bg4 {[%clk
0:02:58.2]} 7. Be3 {[%clk 0:02:49.9]} 7... O-O-O {[%clk 0:02:57.8]} 8. Bxf7
{[%clk 0:02:17.1]} 8... e5 {[%clk 0:02:55.8]} 9. d5 {[%clk 0:02:15]} 9... e4
{[%clk 0:02:39.7]} 10. h3 {[%clk 0:02:05.1]} 10... Ne5 {[%clk 0:02:31.7]} 11.
Nxe5 {[%clk 0:01:52.1]} 11... Bxd1 {[%clk 0:02:29.9]} 12. Be6+ {[%clk
0:01:52.6]} 12... Kb8 {[%clk 0:02:28.6]} 13. Rxd1 {[%clk 0:01:52.9]} 13... Bb4
{[%clk 0:02:19.5]} 14. O-O {[%clk 0:01:45.5]} 14... Bxc3 {[%clk 0:02:02.4]} 15.
bxc3 {[%clk 0:01:44.8]} 15... Nxd5 {[%clk 0:01:58.9]} 16. Rb1 {[%clk 0:00:24.2]}
16... Qxc3 {[%clk 0:01:27.3]} 17. Bd4 {[%clk 0:00:20.5]} 17... Qxc2 {[%clk
0:01:06.1]} 18. Rfc1 {[%clk 0:00:20.1]} 18... Qa4 {[%clk 0:00:51.8]} 19. Nc6+
{[%clk 0:00:20.1]} 19... Ka8 {[%clk 0:00:50.2]} 20. Nxd8 {[%clk 0:00:19.9]}
20... Rxd8 {[%clk 0:00:48.1]} 21. Bxd5 {[%clk 0:00:15.1]} 21... c6 {[%clk
0:00:29.1]} 22. Bb3 {[%clk 0:00:06.2]} 22... Qxd4 {[%clk 0:00:26.6]} 23. Rd1
{[%clk 0:00:06.8]} 23... Qf6 {[%clk 0:00:26.2]} 24. Rxd8+ {[%clk 0:00:06.8]}
24... Qxd8 {[%clk 0:00:27.1]} 25. Re1 {[%clk 0:00:07.4]} 25... Qh4 {[%clk
0:00:21.8]} 26. Re3 {[%clk 0:00:05.9]} 26... a6 {[%clk 0:00:21.5]} 27. Bc2
{[%clk 0:00:05.6]} 27... Qf6 {[%clk 0:00:20.9]} 28. Bxe4 {[%clk 0:00:05.1]}
28... Qa1+ {[%clk 0:00:19.4]} 29. Kh2 {[%clk 0:00:05.7]} 29... Qxa2 {[%clk
0:00:19.5]} 30. Bxh7 {[%clk 0:00:05.9]} 30... Qxf2 {[%clk 0:00:19.3]} 31. Rf3
{[%clk 0:00:05.5]} 31... Qd4 {[%clk 0:00:19]} 32. Bf5 {[%clk 0:00:05.5]} 32...
a5 {[%clk 0:00:19.2]} 33. Bc2 {[%clk 0:00:03.8]} 33... b5 {[%clk 0:00:18.1]} 34.
Rf8+ {[%clk 0:00:03.5]} 34... Ka7 {[%clk 0:00:18.3]} 35. Rf7+ {[%clk 0:00:03.7]}
35... Kb6 {[%clk 0:00:18.9]} 36. Bf5 {[%clk 0:00:04.2]} 36... a4 {[%clk
0:00:18.6]} 37. Bc8 {[%clk 0:00:03.9]} 37... a3 {[%clk 0:00:18.6]} 38. Rb7+
{[%clk 0:00:03.9]} 38... Kc5 {[%clk 0:00:19.1]} 39. Be6 {[%clk 0:00:04.1]} 39...
Qd6+ {[%clk 0:00:18.7]} 0-1

[Event "*** Titled Tuesday Blitz"]
[Site "Chess.com"]
[Date "2021.03.09"]
[Round "3"]
[White "drragnar1"]
[Black "Iskusnyh"]
[Result "1-0"]
[WhiteElo "2433"]
[BlackElo "2601"]
[TimeControl "180+1"]
[EndTime "10:29:17 PST"]
[Termination "drragnar1 won on time"]

1. Nf3 {[%clk 0:03:00.4]} 1... d5 {[%clk 0:02:59.3]} 2. g3 {[%clk 0:02:59.6]}
2... c6 {[%clk 0:02:55.9]} 3. Bg2 {[%clk 0:02:58.7]} 3... Nf6 {[%clk 0:02:56.4]}
4. O-O {[%clk 0:02:58.8]} 4... Bf5 {[%clk 0:02:56.2]} 5. c4 {[%clk 0:02:57.6]}
5... e6 {[%clk 0:02:56.1]} 6. d3 {[%clk 0:02:55.2]} 6... h6 {[%clk 0:02:54.1]}
7. a3 {[%clk 0:02:50.8]} 7... Be7 {[%clk 0:02:51.5]} 8. b4 {[%clk 0:02:50.7]}
8... O-O {[%clk 0:02:49.8]} 9. Bb2 {[%clk 0:02:49.4]} 9... Nbd7 {[%clk
0:02:48.8]} 10. Nbd2 {[%clk 0:02:48.3]} 10... Bh7 {[%clk 0:02:43.3]} 11. Qb3
{[%clk 0:02:25]} 11... Bd6 {[%clk 0:02:39.6]} 12. Rfe1 {[%clk 0:02:21.9]} 12...
Re8 {[%clk 0:02:27.8]} 13. e4 {[%clk 0:02:20.5]} 13... dxe4 {[%clk 0:02:27.2]}
14. dxe4 {[%clk 0:02:21.4]} 14... e5 {[%clk 0:02:27.1]} 15. Nh4 {[%clk
0:02:10.7]} 15... Qc7 {[%clk 0:02:18.4]} 16. c5 {[%clk 0:02:05.8]} 16... Bf8
{[%clk 0:02:16.9]} 17. Rad1 {[%clk 0:02:00.4]} 17... Rad8 {[%clk 0:02:13.3]} 18.
Nc4 {[%clk 0:02:00.1]} 18... b6 {[%clk 0:01:44.9]} 19. Nd6 {[%clk 0:01:42.5]}
19... Bxd6 {[%clk 0:01:43.7]} 20. cxd6 {[%clk 0:01:41.9]} 20... Qb8 {[%clk
0:01:42]} 21. Nf5 {[%clk 0:01:39.6]} 21... Bxf5 {[%clk 0:01:17]} 22. exf5 {[%clk
0:01:38.3]} 22... Rc8 {[%clk 0:01:16.6]} 23. Bf1 {[%clk 0:01:31.6]} 23... Nd5
{[%clk 0:01:11.8]} 24. Bc4 {[%clk 0:01:03.9]} 24... Qxd6 {[%clk 0:01:10.7]} 25.
b5 {[%clk 0:00:50.8]} 25... Nc5 {[%clk 0:00:34.2]} 26. Qf3 {[%clk 0:00:50.2]}
26... Qf6 {[%clk 0:00:25.6]} 27. bxc6 {[%clk 0:00:50.1]} 27... Nc7 {[%clk
0:00:22.2]} 28. Rd7 {[%clk 0:00:47.7]} 28... Re7 {[%clk 0:00:18.7]} 29. Rxe7
{[%clk 0:00:40.4]} 29... Qxe7 {[%clk 0:00:18.8]} 30. Rxe5 {[%clk 0:00:39.7]}
30... Qd6 {[%clk 0:00:17.5]} 31. f6 {[%clk 0:00:35.2]} 31... g6 {[%clk 0:00:16]}
32. Re7 {[%clk 0:00:33.1]} 32... N7e6 {[%clk 0:00:15.9]} 33. c7 {[%clk
0:00:26.7]} 33... Rxc7 {[%clk 0:00:13.8]} 34. Re8+ {[%clk 0:00:21.7]} 34... Kh7
{[%clk 0:00:13.2]} 35. Qe3 {[%clk 0:00:16.8]} 35... Qd4 {[%clk 0:00:11.4]} 36.
Bxd4 {[%clk 0:00:16]} 1-0

[Event "*** Titled Tuesday Blitz"]
[Site "Chess.com"]
[Date "2021.03.09"]
[Round "3"]
[White "TimofeevAr"]
[Black "Sanyura"]
[Result "1-0"]
[WhiteElo "2876"]
[BlackElo "2607"]
[TimeControl "180+1"]
[EndTime "10:29:19 PST"]
[Termination "TimofeevAr won on time"]

1. c4 {[%clk 0:03:00.9]} 1... Nf6 {[%clk 0:01:30.2]} 2. Nc3 {[%clk 0:02:59.4]}
2... g6 {[%clk 0:01:29.7]} 3. g3 {[%clk 0:02:59.3]} 3... d6 {[%clk 0:01:29.9]}
4. Bg2 {[%clk 0:02:59.5]} 4... Bg7 {[%clk 0:01:30.5]} 5. Nf3 {[%clk 0:02:58.8]}
5... O-O {[%clk 0:01:31.2]} 6. O-O {[%clk 0:02:59]} 6... Nbd7 {[%clk 0:01:31.7]}
7. d3 {[%clk 0:02:58.3]} 7... e5 {[%clk 0:01:31.9]} 8. Rb1 {[%clk 0:02:57.2]}
8... a5 {[%clk 0:01:32.1]} 9. b3 {[%clk 0:02:57.2]} 9... h6 {[%clk 0:01:24.9]}
10. Bb2 {[%clk 0:02:56.9]} 10... Nc5 {[%clk 0:01:23.6]} 11. h3 {[%clk
0:02:55.8]} 11... Bd7 {[%clk 0:01:20.2]} 12. Nd2 {[%clk 0:02:54.4]} 12... Qc8
{[%clk 0:01:16.6]} 13. Kh2 {[%clk 0:02:54.3]} 13... a4 {[%clk 0:01:17.1]} 14. b4
{[%clk 0:02:50.7]} 14... Ne6 {[%clk 0:01:17]} 15. Nf3 {[%clk 0:02:32.3]} 15...
Nh7 {[%clk 0:01:06.1]} 16. Nd5 {[%clk 0:02:29.9]} 16... Kh8 {[%clk 0:01:02.7]}
17. a3 {[%clk 0:02:26.6]} 17... Qd8 {[%clk 0:00:55]} 18. c5 {[%clk 0:02:16.4]}
18... Bc6 {[%clk 0:00:37]} 19. e4 {[%clk 0:02:13.3]} 19... Nd4 {[%clk
0:00:28.9]} 20. Bxd4 {[%clk 0:02:10.1]} 20... exd4 {[%clk 0:00:29.8]} 21. cxd6
{[%clk 0:02:04.2]} 21... Qxd6 {[%clk 0:00:30.7]} 22. Nd2 {[%clk 0:02:04.4]}
22... Bxd5 {[%clk 0:00:29.1]} 23. exd5 {[%clk 0:02:04.2]} 23... Nf6 {[%clk
0:00:28.8]} 24. Nc4 {[%clk 0:02:03.6]} 24... Qd8 {[%clk 0:00:27.1]} 25. Qf3
{[%clk 0:02:02.5]} 25... Qd7 {[%clk 0:00:18.7]} 26. b5 {[%clk 0:01:51.7]} 26...
Rad8 {[%clk 0:00:18.6]} 27. b6 {[%clk 0:01:52.1]} 27... cxb6 {[%clk 0:00:12.2]}
28. Rxb6 {[%clk 0:01:47.6]} 28... Rfe8 {[%clk 0:00:07.1]} 29. Rxf6 {[%clk
0:01:45.9]} 29... Bxf6 {[%clk 0:00:06.3]} 30. Qxf6+ {[%clk 0:01:46.1]} 30... Kg8
{[%clk 0:00:07]} 31. d6 {[%clk 0:01:46.3]} 31... Re6 {[%clk 0:00:06.7]} 32. Qxd4
{[%clk 0:01:44.5]} 32... b5 {[%clk 0:00:06.7]} 33. Ne3 {[%clk 0:01:29.9]} 33...
Qxd6 {[%clk 0:00:06.9]} 34. Qh4 {[%clk 0:01:28.9]} 34... h5 {[%clk 0:00:05.7]}
35. Nd5 {[%clk 0:01:23.2]} 35... Re5 {[%clk 0:00:03.1]} 36. Nb4 {[%clk
0:01:19.2]} 36... Kg7 {[%clk 0:00:02.9]} 37. d4 {[%clk 0:01:16.3]} 37... Qxd4
{[%clk 0:00:02.2]} 38. Qxd4 {[%clk 0:01:15.8]} 38... Rxd4 {[%clk 0:00:03.1]} 39.
Nc6 {[%clk 0:01:16.1]} 39... Red5 {[%clk 0:00:03.1]} 40. Nxd4 {[%clk 0:01:15.4]}
40... Rxd4 {[%clk 0:00:03.6]} 41. Rb1 {[%clk 0:01:15.7]} 41... Rd3 {[%clk
0:00:04.1]} 42. Rxb5 {[%clk 0:01:14.5]} 42... Rxa3 {[%clk 0:00:05]} 43. Ra5
{[%clk 0:01:14.6]} 43... Ra2 {[%clk 0:00:05]} 44. f4 {[%clk 0:01:12.7]} 44... h4
{[%clk 0:00:04.9]} 45. gxh4 {[%clk 0:01:12.4]} 45... Kh6 {[%clk 0:00:05.4]} 46.
Kg3 {[%clk 0:01:12.5]} 46... Ra3+ {[%clk 0:00:05.9]} 47. Bf3 {[%clk 0:01:12.7]}
47... Ra1 {[%clk 0:00:06.3]} 48. Bd5 {[%clk 0:01:11.7]} 48... f5 {[%clk
0:00:06.3]} 49. Ra6 {[%clk 0:01:11]} 49... a3 {[%clk 0:00:06.6]} 50. Bf3 {[%clk
0:01:04.8]} 50... Rg1+ {[%clk 0:00:04.9]} 51. Kf2 {[%clk 0:01:00.8]} 51... Ra1
{[%clk 0:00:05.5]} 52. h5 {[%clk 0:01:00.5]} 52... a2 {[%clk 0:00:03.1]} 53.
hxg6 {[%clk 0:00:58.7]} 53... Kg7 {[%clk 0:00:02.3]} 54. h4 {[%clk 0:00:58.2]}
54... Kh6 {[%clk 0:00:02.5]} 55. h5 {[%clk 0:00:58.2]} 1-0

[Event "*** Titled Tuesday Blitz"]
[Site "Chess.com"]
[Date "2021.03.09"]
[Round "3"]
[White "kakakz"]
[Black "Trankuilizer"]
[Result "0-1"]
[WhiteElo "2403"]
[BlackElo "2585"]
[TimeControl "180+1"]
[EndTime "10:29:20 PST"]
[Termination "Trankuilizer won on time"]

1. g3 {[%clk 0:03:00.9]} 1... Nf6 {[%clk 0:02:59]} 2. Bg2 {[%clk 0:03:00.9]}
2... d5 {[%clk 0:02:59.1]} 3. c4 {[%clk 0:03:01.3]} 3... e6 {[%clk 0:02:58.7]}
4. b3 {[%clk 0:03:01.5]} 4... Be7 {[%clk 0:02:58.3]} 5. Bb2 {[%clk 0:03:01.7]}
5... O-O {[%clk 0:02:58.9]} 6. Nf3 {[%clk 0:03:00.7]} 6... c5 {[%clk 0:02:58.4]}
7. O-O {[%clk 0:03:00.5]} 7... d4 {[%clk 0:02:56.5]} 8. e3 {[%clk 0:03:00]} 8...
Nc6 {[%clk 0:02:56.3]} 9. exd4 {[%clk 0:02:57.4]} 9... cxd4 {[%clk 0:02:57.2]}
10. a3 {[%clk 0:02:56.6]} 10... a5 {[%clk 0:02:56.4]} 11. d3 {[%clk 0:02:56.8]}
11... e5 {[%clk 0:02:56.2]} 12. Nbd2 {[%clk 0:02:56.8]} 12... h6 {[%clk
0:02:55.7]} 13. Re1 {[%clk 0:02:55.3]} 13... Bd6 {[%clk 0:02:55.4]} 14. Qc2
{[%clk 0:02:53.3]} 14... Re8 {[%clk 0:02:55.2]} 15. c5 {[%clk 0:02:41.2]} 15...
Bf8 {[%clk 0:02:52.9]} 16. Nc4 {[%clk 0:02:32.2]} 16... e4 {[%clk 0:02:43]} 17.
dxe4 {[%clk 0:02:20.6]} 17... d3 {[%clk 0:02:43.1]} 18. Qd1 {[%clk 0:01:54.5]}
18... Bxc5 {[%clk 0:02:24.2]} 19. Nfe5 {[%clk 0:01:33.2]} 19... Nxe5 {[%clk
0:01:41.7]} 20. Nxe5 {[%clk 0:01:32.5]} 20... Qb6 {[%clk 0:01:42.3]} 21. Nxd3
{[%clk 0:01:30.1]} 21... Rd8 {[%clk 0:01:42.3]} 22. Rf1 {[%clk 0:00:44.7]} 22...
Ng4 {[%clk 0:01:22]} 23. Qc2 {[%clk 0:00:23.5]} 23... Rxd3 {[%clk 0:01:00.2]}
24. Qxd3 {[%clk 0:00:23.5]} 24... Nxf2 {[%clk 0:01:01.1]} 25. Rxf2 {[%clk
0:00:15.7]} 25... Bxf2+ {[%clk 0:01:00.7]} 26. Kh1 {[%clk 0:00:16.6]} 26... Be6
{[%clk 0:01:00.1]} 27. Qc3 {[%clk 0:00:13.8]} 27... f6 {[%clk 0:00:59.8]} 28. e5
{[%clk 0:00:13.7]} 28... f5 {[%clk 0:00:57.9]} 29. Rf1 {[%clk 0:00:13.2]} 29...
Rd8 {[%clk 0:00:53.8]} 30. Qf3 {[%clk 0:00:08.6]} 30... Bd4 {[%clk 0:00:42.6]}
31. Bxd4 {[%clk 0:00:07.9]} 31... Qxd4 {[%clk 0:00:43.5]} 32. Qxb7 {[%clk
0:00:08.1]} 32... Qxe5 {[%clk 0:00:44]} 33. b4 {[%clk 0:00:08.1]} 33... Rb8
{[%clk 0:00:39.2]} 34. Qe7 {[%clk 0:00:05.3]} 34... axb4 {[%clk 0:00:38.2]} 35.
axb4 {[%clk 0:00:06.2]} 35... Kh7 {[%clk 0:00:21.1]} 36. Rg1 {[%clk 0:00:04.5]}
36... Rc8 {[%clk 0:00:18]} 37. b5 {[%clk 0:00:01.1]} 37... Rc2 {[%clk
0:00:17.5]} 38. Bc6 {[%clk 0:00:02]} 38... Bd5+ {[%clk 0:00:16.3]} 0-1

[Event "*** Titled Tuesday Blitz"]
[Site "Chess.com"]
[Date "2021.03.09"]
[Round "3"]
[White "Sashadav97"]
[Black "MrrRefrao"]
[Result "1-0"]
[WhiteElo "2593"]
[BlackElo "2399"]
[TimeControl "180+1"]
[EndTime "10:29:20 PST"]
[Termination "Sashadav97 won on time"]

1. d4 {[%clk 0:03:00.9]} 1... Nf6 {[%clk 0:02:58.7]} 2. c4 {[%clk 0:03:01.2]}
2... e6 {[%clk 0:02:58.6]} 3. Nc3 {[%clk 0:03:01.7]} 3... Bb4 {[%clk 0:02:57.8]}
4. a3 {[%clk 0:03:01.9]} 4... Bxc3+ {[%clk 0:02:56.3]} 5. bxc3 {[%clk
0:03:02.8]} 5... d6 {[%clk 0:02:51.6]} 6. f3 {[%clk 0:02:58.2]} 6... c5 {[%clk
0:02:44.6]} 7. e4 {[%clk 0:02:58.1]} 7... Nc6 {[%clk 0:02:43]} 8. Be3 {[%clk
0:02:49.3]} 8... b6 {[%clk 0:02:40.2]} 9. Bd3 {[%clk 0:02:48.6]} 9... Na5 {[%clk
0:02:30.1]} 10. Ne2 {[%clk 0:02:46.7]} 10... Ba6 {[%clk 0:02:24.9]} 11. f4
{[%clk 0:02:45.6]} 11... Rc8 {[%clk 0:02:10.2]} 12. e5 {[%clk 0:02:43.9]} 12...
Ng4 {[%clk 0:01:59.9]} 13. Bg1 {[%clk 0:02:35.1]} 13... cxd4 {[%clk 0:01:26.3]}
14. cxd4 {[%clk 0:02:29.9]} 14... Bxc4 {[%clk 0:01:22]} 15. h3 {[%clk
0:02:11.4]} 15... Nh6 {[%clk 0:01:21.3]} 16. Bf2 {[%clk 0:02:05.7]} 16... dxe5
{[%clk 0:01:05.9]} 17. fxe5 {[%clk 0:02:06.6]} 17... Bxd3 {[%clk 0:00:56.2]} 18.
Qxd3 {[%clk 0:02:06.4]} 18... Nf5 {[%clk 0:00:57.1]} 19. O-O {[%clk 0:02:03.4]}
19... O-O {[%clk 0:00:56.5]} 20. g4 {[%clk 0:01:53.3]} 20... Ne7 {[%clk
0:00:47.5]} 21. Bh4 {[%clk 0:01:51.2]} 21... Qd7 {[%clk 0:00:47.6]} 22. Bxe7
{[%clk 0:01:50.6]} 22... Qxe7 {[%clk 0:00:48.5]} 23. Nf4 {[%clk 0:01:50.5]}
23... Rfd8 {[%clk 0:00:44.1]} 24. Rad1 {[%clk 0:01:48.6]} 24... Nc4 {[%clk
0:00:42]} 25. Qg3 {[%clk 0:01:44.1]} 25... Qxa3 {[%clk 0:00:35.1]} 26. Rd3
{[%clk 0:01:42.3]} 26... Qb2 {[%clk 0:00:31.9]} 27. Qf3 {[%clk 0:01:04.5]} 27...
Rd7 {[%clk 0:00:24.2]} 28. Rf2 {[%clk 0:00:56.7]} 28... Qc1+ {[%clk 0:00:22.5]}
29. Kh2 {[%clk 0:00:52.8]} 29... b5 {[%clk 0:00:14]} 30. Ne2 {[%clk 0:00:42.3]}
30... Qg5 {[%clk 0:00:11.6]} 31. Nc3 {[%clk 0:00:39.8]} 31... a6 {[%clk
0:00:09.9]} 32. Ne4 {[%clk 0:00:39.5]} 32... Qe7 {[%clk 0:00:05.5]} 33. g5
{[%clk 0:00:36.7]} 33... Rd5 {[%clk 0:00:04.3]} 34. Rg2 {[%clk 0:00:33.6]} 34...
Kh8 {[%clk 0:00:03.5]} 35. Nf6 {[%clk 0:00:32.4]} 35... gxf6 {[%clk 0:00:03.1]}
36. gxf6 {[%clk 0:00:33.3]} 36... Qf8 {[%clk 0:00:02.6]} 37. Rg7 {[%clk
0:00:33.8]} 37... Nxe5 {[%clk 0:00:01.6]} 38. dxe5 {[%clk 0:00:23.4]} 38... Rc2+
{[%clk 0:00:01.7]} 39. Kg3 {[%clk 0:00:19.1]} 39... Rxe5 {[%clk 0:00:01.4]} 40.
Qg4 {[%clk 0:00:18]} 1-0

[Event "*** Titled Tuesday Blitz"]
[Site "Chess.com"]
[Date "2021.03.09"]
[Round "3"]
[White "Majesth"]
[Black "Ghost_Pepper"]
[Result "0-1"]
[WhiteElo "2552"]
[BlackElo "2394"]
[TimeControl "180+1"]
[EndTime "10:29:20 PST"]
[Termination "Ghost_Pepper won by resignation"]

1. d4 {[%clk 0:03:00.9]} 1... Nf6 {[%clk 0:02:59.7]} 2. Nc3 {[%clk 0:02:59.7]}
2... d5 {[%clk 0:02:58.5]} 3. Bg5 {[%clk 0:02:59.1]} 3... g6 {[%clk 0:02:54.6]}
4. Qd2 {[%clk 0:02:54]} 4... c5 {[%clk 0:02:50.2]} 5. dxc5 {[%clk 0:02:52.1]}
5... d4 {[%clk 0:02:37.1]} 6. O-O-O {[%clk 0:02:51.2]} 6... Nc6 {[%clk
0:02:36.4]} 7. Bxf6 {[%clk 0:02:36]} 7... exf6 {[%clk 0:02:37.3]} 8. Ne4 {[%clk
0:02:32.8]} 8... Bf5 {[%clk 0:02:25.2]} 9. Nd6+ {[%clk 0:02:25.4]} 9... Bxd6
{[%clk 0:02:24.1]} 10. cxd6 {[%clk 0:02:26.3]} 10... Qxd6 {[%clk 0:02:23.6]} 11.
e3 {[%clk 0:02:22.2]} 11... Rc8 {[%clk 0:02:15.8]} 12. c3 {[%clk 0:01:43.2]}
12... O-O {[%clk 0:01:50]} 13. exd4 {[%clk 0:01:30.7]} 13... Nb4 {[%clk
0:01:46.3]} 14. Re1 {[%clk 0:00:59.3]} 14... Qb6 {[%clk 0:01:25.6]} 15. Re3
{[%clk 0:00:20.5]} 15... Nxa2+ {[%clk 0:00:51.1]} 16. Kd1 {[%clk 0:00:20.4]}
16... Rfd8 {[%clk 0:00:49.7]} 17. Bd3 {[%clk 0:00:18.8]} 17... Qb3+ {[%clk
0:00:25.2]} 18. Ke1 {[%clk 0:00:13.5]} 18... Bxd3 {[%clk 0:00:23.6]} 19. Rxd3
{[%clk 0:00:14.3]} 19... Re8+ {[%clk 0:00:23.5]} 20. Re3 {[%clk 0:00:14.4]}
20... b5 {[%clk 0:00:20]} 21. Ne2 {[%clk 0:00:14.2]} 21... b4 {[%clk 0:00:19.5]}
22. Rf1 {[%clk 0:00:07.2]} 22... bxc3 {[%clk 0:00:18.3]} 23. bxc3 {[%clk
0:00:07.1]} 23... Qb1+ {[%clk 0:00:17.5]} 24. Qd1 {[%clk 0:00:07.4]} 24... Qb2
{[%clk 0:00:14.7]} 25. Rxe8+ {[%clk 0:00:04]} 25... Rxe8 {[%clk 0:00:13.9]} 26.
Qd2 {[%clk 0:00:04.6]} 26... Qb1+ {[%clk 0:00:14.1]} 27. Qd1 {[%clk 0:00:05]}
27... Rxe2+ {[%clk 0:00:13.1]} 28. Kxe2 {[%clk 0:00:04.5]} 28... Nxc3+ {[%clk
0:00:13.8]} 29. Kd2 {[%clk 0:00:03.6]} 29... Nxd1 {[%clk 0:00:14.7]} 30. Rxd1
{[%clk 0:00:04.3]} 30... Qa2+ {[%clk 0:00:14.1]} 31. Ke3 {[%clk 0:00:04.8]}
31... Kf8 {[%clk 0:00:14.7]} 32. Rd3 {[%clk 0:00:05.7]} 32... Ke8 {[%clk
0:00:14.9]} 33. Rc3 {[%clk 0:00:06.1]} 33... Qb1 {[%clk 0:00:14.9]} 34. Rc5
{[%clk 0:00:07]} 34... Kd7 {[%clk 0:00:15.1]} 35. Ra5 {[%clk 0:00:06.3]} 35...
Qb6 {[%clk 0:00:14]} 36. Rc5 {[%clk 0:00:04.4]} 36... Kd6 {[%clk 0:00:14.2]} 0-1

[Event "*** Titled Tuesday Blitz"]
[Site "Chess.com"]
[Date "2021.03.09"]
[Round "3"]
[White "ailime26"]
[Black "Etud-otradnoe"]
[Result "0-1"]
[WhiteElo "2092"]
[BlackElo "2320"]
[TimeControl "180+1"]
[EndTime "10:29:20 PST"]
[Termination "Etud-otradnoe won on time"]

1. e4 {[%clk 0:02:59.6]} 1... e6 {[%clk 0:02:59.6]} 2. d4 {[%clk 0:02:59.7]}
2... d5 {[%clk 0:02:59.5]} 3. Nc3 {[%clk 0:03:00.1]} 3... Bb4 {[%clk 0:02:58.9]}
4. e5 {[%clk 0:02:58.4]} 4... c5 {[%clk 0:02:58]} 5. a3 {[%clk 0:02:55.4]} 5...
Bxc3+ {[%clk 0:02:57.3]} 6. bxc3 {[%clk 0:02:56.3]} 6... Qa5 {[%clk 0:02:57]} 7.
Qd2 {[%clk 0:02:53.7]} 7... Nc6 {[%clk 0:02:27.7]} 8. Bb2 {[%clk 0:02:52.8]}
8... b6 {[%clk 0:02:12]} 9. f4 {[%clk 0:02:52.3]} 9... Ba6 {[%clk 0:02:06.9]}
10. Bd3 {[%clk 0:02:47]} 10... Nge7 {[%clk 0:02:01.1]} 11. Nf3 {[%clk
0:02:45.2]} 11... Qa4 {[%clk 0:01:51.4]} 12. O-O {[%clk 0:02:38.7]} 12... Bxd3
{[%clk 0:01:51.1]} 13. Qxd3 {[%clk 0:02:37.7]} 13... cxd4 {[%clk 0:01:42.1]} 14.
cxd4 {[%clk 0:02:32.1]} 14... h6 {[%clk 0:01:37.4]} 15. Rac1 {[%clk 0:02:31.6]}
15... Na5 {[%clk 0:01:36.4]} 16. Nd2 {[%clk 0:02:23.4]} 16... Rc8 {[%clk
0:01:32.2]} 17. Bc3 {[%clk 0:02:16.4]} 17... Nc4 {[%clk 0:01:28.1]} 18. Bb4
{[%clk 0:02:12]} 18... Nf5 {[%clk 0:01:20.2]} 19. Nxc4 {[%clk 0:02:03.4]} 19...
Rxc4 {[%clk 0:01:19.6]} 20. c3 {[%clk 0:01:32.7]} 20... a5 {[%clk 0:01:18.7]}
21. g4 {[%clk 0:01:26.6]} 21... axb4 {[%clk 0:00:26.5]} 22. gxf5 {[%clk
0:01:25.5]} 22... exf5 {[%clk 0:00:26.6]} 23. cxb4 {[%clk 0:01:20.5]} 23... b5
{[%clk 0:00:20.4]} 24. Qxf5 {[%clk 0:01:17.5]} 24... O-O {[%clk 0:00:19.4]} 25.
e6 {[%clk 0:01:09.9]} 25... Qxa3 {[%clk 0:00:19.5]} 26. Rce1 {[%clk 0:00:33.8]}
26... fxe6 {[%clk 0:00:17.9]} 27. Qxe6+ {[%clk 0:00:30]} 27... Kh8 {[%clk
0:00:18.1]} 28. Qxd5 {[%clk 0:00:29]} 28... Qxb4 {[%clk 0:00:18.2]} 29. Re4
{[%clk 0:00:22.2]} 29... Rc2 {[%clk 0:00:17.5]} 30. Qh5 {[%clk 0:00:04.3]} 30...
Qd2 {[%clk 0:00:16.5]} 31. Re2 {[%clk 0:00:02]} 31... Qxe2 {[%clk 0:00:16.1]}
32. Qxe2 {[%clk 0:00:01.9]} 32... Rxe2 {[%clk 0:00:16.4]} 0-1